{"text_format":"3","workbook":"xlsx","n_sheets":4,"sheets":["Lista de la compra","Desglose del presupuesto","Lista de tareas pendientes","Compartir lista"],"not_rendered":{"charts":2,"images":2,"defined_names":12},"read":"whole","date_system":"1900"}

{"sheet":"Lista de la compra","index":0,"n_rows":25,"n_cols":8,"rows_kept":25,"merged":[[2,1,2,7],[3,1,3,2]]}
[null,"Vuelta al colegio","Planificador"]
[]
[null,"Compare el progreso de las compras realizadas con los totales del presupuesto por categorías indicado en Desglose del presupuesto."]
[null,"Resumen de presupuesto",null,null,{"$f":"\"Progreso de compra (\"&COUNTIFS(Lista_de_comprobación[Comprado], \">0\")&\" de \"&COUNTIFS(Lista_de_comprobación[Comprar], \">0\")&\")\"","v":"Progreso de compra (1 de 6)"}]
[null,"Presupuesto",{"v":1500,"d":"1,500.00 €"},null,{"$f":"IFERROR(COUNTIFS(Lista_de_comprobación[Comprar],\">0\",Lista_de_comprobación[Comprado],\">0\")/SumaArtículosComprar,0)","v":{"v":0.16666666666666666,"d":"17%"}}]
[null,"Total de lista de la compra",{"$f":"IFERROR(SUM(Lista_de_comprobación[[#All],[Coste total]]), \"\")","v":{"v":365,"d":"365.00 €"}}]
[null,"Saldo restante",{"$f":"IFERROR(C5-C6, \"\")","v":{"v":1135,"d":"1,135.00 €"}}]
[null,"Lista de la compra"]
[null,"Artículo","Categoría","Cant.","Comprar","Costo","Comprado","Coste total"]
[null,"Matemáticas","Libros de texto",{"v":1,"d":"1 "},1,{"v":55,"d":"55.00 €"},1,{"$f":"IFERROR(Lista_de_comprobación[[#This Row],[Cant.]]*Lista_de_comprobación[[#This Row],[Costo]], \"\")","v":{"v":55,"d":"55.00 €"}}]
[null,"Inglés","Libros de texto",{"v":1,"d":"1 "},1,null,null,{"$f":"IFERROR(Lista_de_comprobación[[#This Row],[Cant.]]*Lista_de_comprobación[[#This Row],[Costo]], \"\")","v":0}]
[null,"Mochila","Artículos de consumo",{"v":1,"d":"1 "},null,{"v":30,"d":"30.00 €"},null,{"$f":"IFERROR(Lista_de_comprobación[[#This Row],[Cant.]]*Lista_de_comprobación[[#This Row],[Costo]], \"\")","v":{"v":30,"d":"30.00 €"}}]
[null,"Calculadora","Artículos de consumo",{"v":1,"d":"1 "},{"$nulls":3},{"$f":"IFERROR(Lista_de_comprobación[[#This Row],[Cant.]]*Lista_de_comprobación[[#This Row],[Costo]], \"\")","v":0}]
[null,"Marcadores","Artículos de consumo",{"v":3,"d":"3 "},{"$nulls":3},{"$f":"IFERROR(Lista_de_comprobación[[#This Row],[Cant.]]*Lista_de_comprobación[[#This Row],[Costo]], \"\")","v":0}]
[null,"Uniforme","Ropa",{"v":2,"d":"2 "},1,{"v":100,"d":"100.00 €"},null,{"$f":"IFERROR(Lista_de_comprobación[[#This Row],[Cant.]]*Lista_de_comprobación[[#This Row],[Costo]], \"\")","v":{"v":200,"d":"200.00 €"}}]
[null,"Camisa","Ropa",{"v":4,"d":"4 "},{"$nulls":3},{"$f":"IFERROR(Lista_de_comprobación[[#This Row],[Cant.]]*Lista_de_comprobación[[#This Row],[Costo]], \"\")","v":0}]
[null,"Camisetas","Ropa",{"v":5,"d":"5 "},{"$nulls":3},{"$f":"IFERROR(Lista_de_comprobación[[#This Row],[Cant.]]*Lista_de_comprobación[[#This Row],[Costo]], \"\")","v":0}]
[null,"Pantalones cortos","Ropa",{"v":2,"d":"2 "},{"$nulls":3},{"$f":"IFERROR(Lista_de_comprobación[[#This Row],[Cant.]]*Lista_de_comprobación[[#This Row],[Costo]], \"\")","v":0}]
[null,"Zapatillas","Ropa",{"v":2,"d":"2 "},1,null,null,{"$f":"IFERROR(Lista_de_comprobación[[#This Row],[Cant.]]*Lista_de_comprobación[[#This Row],[Costo]], \"\")","v":0}]
[null,"Calcetines","Ropa",{"v":10,"d":"10 "},{"$nulls":3},{"$f":"IFERROR(Lista_de_comprobación[[#This Row],[Cant.]]*Lista_de_comprobación[[#This Row],[Costo]], \"\")","v":0}]
[null,"Chaqueta","Ropa",{"v":1,"d":"1 "},1,{"v":80,"d":"80.00 €"},null,{"$f":"IFERROR(Lista_de_comprobación[[#This Row],[Cant.]]*Lista_de_comprobación[[#This Row],[Costo]], \"\")","v":{"v":80,"d":"80.00 €"}}]
[null,"Jerséis","Ropa",{"v":1,"d":"1 "},{"$nulls":3},{"$f":"IFERROR(Lista_de_comprobación[[#This Row],[Cant.]]*Lista_de_comprobación[[#This Row],[Costo]], \"\")","v":0}]
[null,"Sudaderas","Ropa",{"v":1,"d":"1 "},{"$nulls":3},{"$f":"IFERROR(Lista_de_comprobación[[#This Row],[Cant.]]*Lista_de_comprobación[[#This Row],[Costo]], \"\")","v":0}]
[null,"Ropa interior","Ropa",{"v":10,"d":"10 "},{"$nulls":3},{"$f":"IFERROR(Lista_de_comprobación[[#This Row],[Cant.]]*Lista_de_comprobación[[#This Row],[Costo]], \"\")","v":0}]
[null,"Abrigo","Ropa",{"v":1,"d":"1 "},1,null,null,{"$f":"IFERROR(Lista_de_comprobación[[#This Row],[Cant.]]*Lista_de_comprobación[[#This Row],[Costo]], \"\")","v":0}]

{"sheet":"Desglose del presupuesto","index":1,"n_rows":6,"n_cols":3,"rows_kept":6}
[null,"Desglose del presupuesto"]
[null,"Agregue categorías y el presupuesto correspondiente para realizar una comparación con la lista de la compra."]
[null,"Categoría","Coste total"]
[null,"Ropa",{"$f":"IFERROR(SUMIFS(Lista_de_comprobación[Coste total],Lista_de_comprobación[Categoría],Categoría[[#This Row],[Categoría]]), \"\")","v":{"v":280,"d":"280.00 €"}}]
[null,"Artículos de consumo",{"$f":"IFERROR(SUMIFS(Lista_de_comprobación[Coste total],Lista_de_comprobación[Categoría],Categoría[[#This Row],[Categoría]]), \"\")","v":{"v":30,"d":"30.00 €"}}]
[null,"Libros de texto",{"$f":"IFERROR(SUMIFS(Lista_de_comprobación[Coste total],Lista_de_comprobación[Categoría],Categoría[[#This Row],[Categoría]]), \"\")","v":{"v":55,"d":"55.00 €"}}]

{"sheet":"Lista de tareas pendientes","index":2,"n_rows":22,"n_cols":3,"rows_kept":22}
[null,"Lista de tareas pendientes"]
[null,"Enumere todas las tareas que tenga que completar antes del primer día de colegio para realizar un seguimiento."]
[null,"Realizada","Tarea"]
[null,"x","Rellenar los impresos de matrícula"]
[null,null,"Programar revisión médica y visual escolar si es necesario"]
[null,null,"Comprobar las vacunas obligatorias"]
[null,null,"Solicitar al médico las dosis para la medicación necesaria"]
[null,null,"Revisar el código de vestimenta de la escuela"]
[null,null,"Obtener una lista del material escolar"]
[null,null,"Reunirse con los profesores"]
[null,null,"Preguntar el medio de comunicación preferido de los profesores (teléfono, correo electrónico o notas escritas)"]
[null,null,"Hacer un recorrido de la escuela con los niños"]
[null,null,"Ayudar a los niños a recordar el teléfono y la dirección de casa, y el teléfono del trabajo"]
[null,null,"Organizar el transporte, designar un punto de recogida seguro y practicar la rutina"]
[null,null,"Si el trayecto se realiza a pie, practicarlo varias veces con los niños desde y hacia la escuela"]
[null,null,"Si se comparte coche, presentar a los niños a los demás conductores"]
[null,null,"Si los niños van en bus, consultar el horario y las paradas"]
[null,null,"Organizar la guardería o las actividades extraescolares "]
[null,null,"Planificar el menú para desayuno, recreo, almuerzo y merienda"]
[null,null,"Decidir la programación y la ubicación para realizar los deberes"]
[null,null,"Establecer una rutina para ir a la cama al menos dos semanas antes del primer día de colegio"]
[null,null,"Preparar un calendario con las actividades y los eventos del colegio"]

{"sheet":"Compartir lista","index":3,"n_rows":4,"n_cols":5,"rows_kept":4}
[null,"Compartir lista",null,null,"Comparta esta lista con otras personas para que puedan contribuir. Seleccione Compartir en la esquina superior derecha o presione ALT y, después, presione \"Z\" y, a continuación, \"S\". Guarde el archivo en OneDrive y envíe el vínculo a sus amigos."]
[null,"Nombre","Correo electrónico","¿Compartido?"]
[null,"Nikola Janu","nikola@example.com","Sí"]
[null,"Robert Anic","robert@example.com","No"]